[Event "ESP-ch Teams Primera 2022"]
[Site "Sanxenxo Pontevedra"]
[Date "2022.09.19"]
[Round "3.10"]
[White "Gomez Dieguez, David"]
[Black "Ladron De Guevara Pinto, Paolo"]
[Result "1/2-1/2"]
[ECO "C91"]
[WhiteElo "2332"]
[BlackElo "2429"]
[Annotator "TA"]
[PlyCount "64"]
[EventDate "2022.09.17"]
[EventType "team-tourn"]
[EventCountry "ESP"]
[SourceTitle "playchess.com"]
[Source "ChessBase"]
[SourceQuality "1"]
[TimeControl "5400+30"]

{[%evp 20,64,16,16,20,2,10,2,2,8,8,3,3,3,11,0,12,-15,8,0,23,0,0,0,0,8,20,0,0,0,0,0,0,0,0,0,0,0,0,0,0,0,0,0,0,0,0]} 1. e4 e5 2. Nf3 Nc6 3. Bb5 {[%cal Bf1b5,Bb5a4,Ba4b3][%mdl 32]} a6 4. Ba4 Nf6 5. O-O Be7 6. Re1 b5 7. Bb3 d6 8. c3 O-O 9. d4 Bg4 10. Be3 Bh5 11. Nbd2 {EASY} d5 {BESTDEEP. C91: Closed Ruy Lopez: 7...d6 8 c3 0-0 9 d4.} 12. Bg5 {[#] Strongly threatening Bxf6. CPLX 2.7 18 (e4xd5) (=9)} (12. exd5 {feels hotter.} Nxd5 13. dxe5 Nxe5 14. Bd4) 12... exd4 {BESTDEEP} 13. exd5 {EASY} dxc3 {CPLX 3.1} 14. dxc6 {BESTDEEP} cxd2 {EASY} 15. Qxd2 {RECAPT} Qxd2 {RECAPT} 16. Bxd2 {RECAPT} Bd6 {[#] CPLX 2.2 8 (Rf8-e8) (=1)} 17. Ne5 $146 {CPLX 2.1 11 (Nf3-h4) (=4)} ({Predecessor:} 17. Nh4 Rad8 18. Bc3 Bg4 19. h3 Bc8 20. Nf3 h6 21. a4 b4 22. Bxf6 gxf6 23. a5 Rfe8 24. Bc4 Kf8 25. b3 Rxe1+ 26. Rxe1 {½-½ (36) Ponomariov,R (2712)-Svidler,P (2756) Khanty-Mansiysk 2017}) 17... Ng4 {CPLX 2.5 12 (Rf8-e8) (=3)} 18. Nf3 {CPLX 3.2 27 (Ne5-d7) (=7)} Nf6 {CPLX 2.5 23 (Bd6-c5) (=5)} 19. Ne5 {CPLX 2.1 8 (Nf3-h4) (=7)} Ng4 {BESTDEEP} 20. Bf4 {CPLX 3.2 23 (Ne5-d7) (=9)} Nxe5 {CPLX 2.9. The position is equal.} 21. Bxe5 {RECAPT} Rfd8 {CPLX 2.0} 22. Bxd6 {BESTDEEP} Rxd6 {RECAPT} 23. Re7 {CPLX 2.0 20 (Re1-e5) (=8)} Rc8 {CPLX 2.0} 24. Rc1 {BESTDEEP} Kf8 {BESTDEEP} 25. Rd7 {CPLX 2.0} Rxd7 {BESTDEEP} 26. cxd7 $11 {[%mdl 4096] Endgame KRB-KRB. RECAPT} Rd8 {CPLX 2.8} 27. Rxc7 {CPLX 2.6 0 (Rc1-c5) (=6)} Ke7 {BESTDEEP} 28. f3 {CPLX 2.7 0 (Rc7-a7) (=6)} Rxd7 {CPLX 2.7} 29. Rc6 {CPLX 2.0} Rd6 {CPLX 2.0} 30. Rc7+ {CPLX 2.0 0 (Rc6-c8) (=5)} Rd7 {CPLX 2.0} 31. Rc6 {CPLX 2.0 0 (Rc7-c5) (=5)} Rd6 {CPLX 2.0} 32. Rc7+ {CPLX 2.0 0 (Rc6-c5) (=5)} Rd7 {An even fight not without its subleties.  Weighted Error Value: White=0.07 (flawless) /Black=0.02 (flawless)} 1/2-1/2

[Event "ESP-ch Teams Primera 2022"]
[Site "Sanxenxo Pontevedra"]
[Date "2022.09.19"]
[Round "3.11"]
[White "Alshameary Puente, Ismael"]
[Black "Del Prado Rodriguez, Xulio"]
[Result "1/2-1/2"]
[ECO "A45"]
[WhiteElo "2332"]
[BlackElo "2281"]
[Annotator "TA"]
[PlyCount "91"]
[EventDate "2022.09.17"]
[EventType "team-tourn"]
[EventCountry "ESP"]
[SourceTitle "playchess.com"]
[Source "ChessBase"]
[SourceQuality "1"]
[TimeControl "5400+30"]

{[%evp 9,91,10,11,5,16,3,4,7,12,8,14,9,22,-9,0,0,0,2,12,12,18,18,29,25,24,21,23,23,32,24,23,18,24,22,29,0,15,14,22,4,2,0,0,0,0,0,0,0,0,0,0,0,0,0,0,0,10,0,28,28,28,28,54,18,24,12,8,8,7,8,30,30,30,3,3,0,0,0,0,0,8,0,0,0]} 1. d4 Nf6 2. Bf4 b6 3. e3 Bb7 4. Nf3 g6 5. c4 Bg7 {CPLX 2.0 1 (d7-d6) (=1)} 6. Nc3 {CPLX 2.0 6 (Bf1-e2) (=6). A47: 1 d4 Nf6 2 Nf3 b6: Torre, London and Colle Systems.} O-O {[%emt 0:19:37] CPLX 2.1 11 (d7-d6) (=6)} 7. h3 {[%emt 0:10:49] CPLX 2.1 13 (Bf1-e2) (=10)} d5 {[%emt 0:00:30] CPLX 2.2 1 (d7-d6) (=4)} 8. Rc1 {[%emt 0:08:25] BESTDEEP} c5 {[%emt 0:06:39] BESTDEEP} 9. dxc5 {[%emt 0:00:30] BESTDEEP} bxc5 {[%emt 0:03:21][%cal Od5d4] RECAPT} 10. cxd5 {[%emt 0:00:56] CPLX 2.5 5 (Qd1-b3) (=5)} (10. Qb3 {feels hotter.} Qb6 11. Nxd5 Nxd5 12. cxd5 Qxb3 13. axb3 Bxd5 14. Rxc5 e6 15. Be2) 10... Nxd5 {[%emt 0:00:30] RECAPT} 11. Be5 {[%emt 0:00:30] [#] CPLX 2.9 31 (Qd1-b3) (=9)} (11. Qb3 {keeps more tension.} Bc6 12. Be5 e6 13. Bxg7 Kxg7 14. Nxd5 Bxd5 15. Qc3+) 11... Nxc3 $146 {[%emt 0:00:30] CPLX 3.2 9 (Bg7xe5) (=3)} (11... Bxe5 {with more complications.} 12. Nxe5 Qc7 13. Qb3 Nf6) ({Predecessor:} 11... Nf6 12. Qxd8 Rxd8 13. Bb5 Nc6 14. Bxf6 Bxf6 15. Na4 Ne5 16. Nxe5 Bxe5 17. O-O Rab8 {½-½ (61) Tomashevsky,E (2714)-Nepomniachtchi,I (2714) Sochi 2014}) 12. Qxd8 {[%emt 0:00:30] CPLX 5.0} (12. Bxc3 {seems wilder.} Qxd1+ 13. Rxd1 Bxc3+ 14. bxc3 Kg7 15. Rd2) 12... Rxd8 {[%emt 0:00:30] RECAPT} 13. Bxc3 {[%emt 0:00:30] BESTDEEP} Bxc3+ {[%emt 0:00:30] CPLX 2.3 10 (Nb8-c6) (=4)} 14. Rxc3 {[%emt 0:00:30] RECAPT} Bxf3 {[%emt 0:00:30] MISS-Nb8-d7 6 (Nb8-d7) (=4)} 15. gxf3 {[%emt 0:00:30] RECAPT} Nd7 {[%emt 0:00:30] CPLX 2.0 11 (Rd8-d6) (=4)} 16. Be2 {[%emt 0:00:30] CPLX 2.0 4 (Ke1-d1) (=5)} Rab8 {[%emt 0:00:30] CPLX 2.0} 17. b3 {[%emt 0:00:30] CPLX 2.0 3 (Rc3-c2) (=5)} e6 {[%emt 0:00:30] CPLX 2.0} 18. O-O {[%emt 0:00:30] CPLX 2.0 0 (f3-f4) (=5)} Kf8 {[%emt 0:00:30] CPLX 2.0 9 (Nd7-f6) (=4)} 19. Rd1 {[%emt 0:00:30] CPLX 2.0 8 (f3-f4) (=5)} Ke7 {[%emt 0:00:30] CPLX 2.1} 20. Kf1 {[%emt 0:00:30] CPLX 2.2 5 (f3-f4) (=5)} Rdc8 {[%emt 0:00:30] CPLX 2.1 6 (Rb8-b4) (=4)} 21. Rdc1 {[%emt 0:00:30] CPLX 2.1} Rc6 {[%emt 0:00:30] BESTDEEP} 22. Rd1 {[%emt 0:00:30] CPLX 2.0 29 (Kf1-g2) (=6)} Rcb6 {[%emt 0:00:30] CPLX 2.1 15 (Rc6-c8) (=4)} 23. f4 {[%emt 0:00:30] CPLX 2.1} a5 {[%emt 0:00:30] CPLX 2.2 8 (Rb6-b4) (=5)} 24. Bc4 {[%emt 0:00:30] CPLX 2.2 18 (Rd1-a1) (=6)} Rd6 {[%emt 0:00:30] CPLX 2.1} 25. Rxd6 {[%emt 0:00:30] CPLX 2.4 2 (Bc4-d3) (=6)} Kxd6 $11 {[%emt 0:00:30][%mdl 4096] Endgame KRB-KRN. RECAPT} 26. a4 {[%emt 0:00:30] BESTDEEP} Nb6 {[%emt 0:00:30] CPLX 2.0 0 (Rb8-b4) (=4)} 27. Bb5 {[%emt 0:00:30] CPLX 2.0 0 (Rc3-d3) (=6)} Nd5 {[%emt 0:00:30] CPLX 2.0 0 (f7-f5) (=4)} 28. Rc1 {[%emt 0:00:30] CPLX 2.4} Rd8 {[%emt 0:00:30] CPLX 2.2 0 (f7-f5) (=4)} 29. Ke2 {[%emt 0:00:30] CPLX 2.1} Nc7 {[%emt 0:00:30] BESTDEEP} 30. Bc4 {[%emt 0:00:30] CPLX 2.1 0 (Rc1-d1) (=5)} Kc6 {[%emt 0:00:30] BESTDEEP} 31. h4 {[%emt 0:00:30] CPLX 2.0 0 (Rc1-d1) (=5)} h5 {[%emt 0:00:30] CPLX 2.0} 32. Rg1 {[%emt 0:00:30] CPLX 2.0 0 (Ke2-f3) (=5)} Rd7 {[%emt 0:00:30] CPLX 2.0 10 (Nc7-d5) (=3)} 33. Rg5 {[%emt 0:00:30] CPLX 2.0 10 (Ke2-f3) (=5)} Kb6 {[%emt 0:00:30] CPLX 2.1 28 (Rd7-d8) (=4)} 34. e4 {[%emt 0:00:30] aiming for f5. BESTDEEP} Rd4 {[%emt 0:00:30] CPLX 2.1} 35. f3 {[%emt 0:00:30] BESTDEEP} Kc6 {[%emt 0:00:30] CPLX 2.2 26 (Nc7-e8) (=5)} 36. Ke3 {[%emt 0:00:30] CPLX 2.3 36 (Ke2-f2) (=5)} Kd6 $1 {[%emt 0:00:30] CPLX 2.5} 37. f5 {[%emt 0:00:30] CPLX 2.6} gxf5 {[%emt 0:00:30] CPLX 2.9} 38. Rxh5 {[%emt 0:00:30] EASY} fxe4 {[%emt 0:00:30] CPLX 2.7} 39. fxe4 {[%emt 0:00:30] RECAPT} f5 {[%emt 0:00:30] CPLX 2.5 22 (Nc7-a8) (=5)} 40. exf5 {[%emt 0:00:30] EASY} exf5 {[%emt 0:00:30] RECAPT} 41. Rxf5 {[%emt 0:00:30] [#] Strongly threatening h5. CPLX 2.5 27 (Ke3-f3) (=5)} Rxh4 {[%emt 0:00:30] EASY. The position is equal.} 42. Rf6+ {[%emt 0:00:30] CPLX 2.0 3 (Ke3-f2) (=5)} Ke5 {[%emt 0:00:30] EASY} 43. Rc6 {[%emt 0:00:30][%csl LRc5,LRc7] CPLX 2.2 0 (Rf6-f3) (=5)} Nd5+ {[%emt 0:00:30] EASY} 44. Kf2 {[%emt 0:00:30] CPLX 2.2 0 (Ke3-d2) (=5)} Ke4 {[%emt 0:00:30] CPLX 2.0 8 (Ke5-d4) (=5)} 45. Rd6 {[%emt 0:00:30] CPLX 2.0 8 (Rc6xc5) (=5)} Rh5 {[%emt 0:00:30] CPLX 2.0 0 (Nd5-f4) (=4)} 46. Rxd5 {[%emt 0:00:30] Weighted Error Value: White=0.06 (flawless) /Black=0.05 (flawless)} 1/2-1/2

[Event "ESP-ch Teams Primera 2022"]
[Site "Sanxenxo Pontevedra"]
[Date "2022.09.19"]
[Round "3.12"]
[White "Hernandez Estevez, Yudania"]
[Black "Calzetta Ruiz, Monica"]
[Result "0-1"]
[ECO "B27"]
[WhiteElo "2199"]
[BlackElo "2227"]
[Annotator "RC"]
[PlyCount "128"]
[EventDate "2022.09.17"]
[EventType "team-tourn"]
[EventCountry "ESP"]
[SourceTitle "playchess.com"]
[Source "ChessBase"]
[SourceQuality "1"]
[TimeControl "5400+30"]

1. e4 c5 2. Nf3 g6 3. d4 cxd4 4. Qxd4 Nf6 5. e5 Nc6 6. Qa4 Nd5 7. c4 Nc7 8. Bf4 Bg7 9. Nc3 Ne6 10. Bg3 b6 11. Be2 Bb7 12. O-O g5 13. Rfe1 h5 14. h3 Qb8 15. c5 bxc5 16. Rad1 Ncd4 17. Nxd4 cxd4 18. Rxd4 Bc6 19. Qc4 h4 20. Bh2 Nxd4 21. Qxd4 Qb7 22. Bf1 Rc8 23. Qd2 Rh6 24. f3 Kf8 25. Bd3 f6 26. exf6 Bxf6 27. Be5 Qb6+ 28. Kh1 Qc5 29. Bxf6 Rxf6 30. Re3 g4 31. fxg4 Rb8 32. b3 Rb4 33. Nd1 Rbf4 34. Kg1 Qd6 35. Qc3 Qd5 36. Qc2 Rf2 37. Qxf2 Rxf2 38. Kxf2 Qxg2+ 39. Ke1 Qxa2 40. Be2 Bd5 41. b4 Qb1 42. b5 Bb3 43. Rd3 d6 44. Rd2 Qa1 45. Kf2 Qa5 46. Rd3 Bf7 47. Rf3 Kg7 48. Ne3 e6 49. Nc4 Qb4 50. g5 Bg6 51. Ra3 Qc5+ 52. Kf1 Bf5 53. Ke1 d5 54. b6 dxc4 55. Rxa7+ Kg6 56. Rc7 Qxb6 57. Rxc4 Qg1+ 58. Kd2 Qxg5+ 59. Ke1 Bxh3 60. Rc8 Qg1+ 61. Kd2 Qd4+ 62. Ke1 Bf5 63. Rc4 Qg1+ 64. Kd2 h3 0-1

[Event "ESP-ch Teams Primera 2022"]
[Site "Sanxenxo Pontevedra"]
[Date "2022.09.19"]
[Round "3.13"]
[White "Pulvett Marin, Daniel Eduardo"]
[Black "Reinaldo Castineira, Roi"]
[Result "*"]
[ECO "E11"]
[WhiteElo "2497"]
[BlackElo "2496"]
[Annotator "TA"]
[PlyCount "75"]
[EventDate "2022.09.17"]
[EventType "team-tourn"]
[EventCountry "ESP"]
[SourceTitle "playchess.com"]
[Source "ChessBase"]
[SourceQuality "1"]
[TimeControl "5400+30"]

{[%evp 13,75,16,22,20,24,14,19,0,16,0,22,31,12,34,30,19,19,1,17,18,16,12,15,9,21,6,21,0,7,9,6,0,0,-8,15,10,2,2,3,9,8,9,15,11,17,-64,-54,-79,-86,-77,-77,-183,-63,-63,-63,-63,-63,-63,-63,-63,-83,-83,-64,-65]} 1. d4 e6 2. c4 Nf6 3. Nf3 Bb4+ 4. Nbd2 a5 5. g3 b6 6. Bg2 Bb7 7. O-O O-O {CPLX 2.3 6 (d7-d5) (=6)} 8. Nb1 {[%cal Oc4c5] BESTDEEP. E16: Queen's Indian: 4 g3 Bb7 5 Bg2 Bb4+.} Be7 {CPLX 2.3 4 (Bb4-d6) (=5)} 9. Re1 {CPLX 2.1 10 (Nb1-c3) (=5)} Bb4 {BESTDEEP} 10. Rf1 {CPLX 2.5 19 (Bc1-d2) (=10). The position is equal.} Be7 {BESTDEEP} 11. Bf4 {CPLX 2.1 16 (Nb1-c3) (=11)} Nh5 {CPLX 2.2 22 (d7-d5) (=6)} 12. Bd2 {[#] CPLX 2.5} Nf6 $146 {CPLX 2.3 0 (d7-d5) (=5)} ({Predecessor:} 12... f5 13. Nc3 Nf6 14. Qc2 Bb4 15. a3 Bxc3 16. Bxc3 Be4 17. Qd1 a4 18. Nd2 Bxg2 19. Kxg2 d6 20. Qc2 Qe8 {½-½ (32) Alieva,E (1925)-Khugashvili,T Ivano Frankivsk 1981}) 13. Nc3 {EASY} Bb4 {CPLX 2.1 0 (Nf6-e4) (=5)} 14. Rc1 {CPLX 2.3 11 (d4-d5) (=8)} d6 {CPLX 2.4} 15. Bg5 {CPLX 2.4 18 (d4-d5) (=9)} Bxc3 {BESTDEEP} 16. Rxc3 {RECAPT} Nbd7 {CPLX 2.4} 17. d5 {BESTDEEP} exd5 {CPLX 2.4 3 (h7-h6) (=3)} 18. Nh4 {[%cal Rc4d5] CPLX 2.5} d4 {CPLX 2.6} 19. Qxd4 {EASY} Bxg2 {EASY} 20. Kxg2 {RECAPT 21 (Nh4xg2) (=7)} Re8 {CPLX 2.6} 21. Re1 {CPLX 2.6 0 (e2-e4) (=7)} h6 {CPLX 2.6} 22. Bc1 {CPLX 2.8 6 (Bg5xf6) (=7)} Ne4 {CPLX 2.5 0 (a5-a4) (=2)} 23. Rf3 {CPLX 3.7 8 (Rc3-e3) (=7)} Qe7 {CPLX 4.1 23 (a5-a4) (=3)} 24. Re3 {And now f3 would win. BESTDEEP} Ndc5 {BESTDEEP} 25. f3 {CPLX 4.0} Qf6 {EASY} 26. Rd1 {CPLX 4.1} Qxd4 {CPLX 3.9} 27. Rxd4 {RECAPT} Nf6 {[%cal Be4f6,Bf6d7,Bd7e5,Be5c4][%mdl 32] CPLX 2.3 6 (Ne4-g5) (=3)} 28. Rxe8+ {MISS-Nh4-f5 4 (Nh4-f5) (=5)} Rxe8 {RECAPT} 29. e4 {RELBLUND 81 (Kg2-f2) (=9)} (29. Kf2 $11) 29... Nfd7 $1 $15 {CPLX 2.0=>BLUNDERREACT} 30. b3 {[#] CPLX 2.0 25 (Rd4-d2) (=10)} Ne5 $1 {CPLX 2.0} 31. Nf5 {[#] CPLX 2.0} a4 $1 {DEEPSTRONG} 32. bxa4 {CPLX 2.5 106 (b3-b4) (=13)} (32. b4 $17 Ne6 33. Rd1) 32... Ne6 {Pair of Knights! CPLX 2.4 120 (Re8-a8) (=7)} ({Stronger than} 32... Nxa4 33. Bf4 $17) (32... Ra8 $19 33. Bf4 Nc6) 33. Rd5 $1 {CPLX 2.7=>BLUNDERREACT} Ra8 {Prevents a5. BESTDEEP} 34. a5 {BESTDEEP} (34. Ne7+ $2 Kf8 35. Nf5 Rxa4 $17) 34... Nxc4 {EASY} 35. axb6 $1 {DEEPSTRONG} Rxa2+ {EASY} 36. Rd2 $1 {DEEPSTRONG} Rxd2+ {DEEPSTRONG} (36... Nxd2 $2 37. b7 Nc4+ 38. Kf1 Nd2+ 39. Kf2 $18) 37. Bxd2 {Hoping for b7. RECAPT} Nxb6 {CPLX 2.4} (37... Nxd2 $2 38. b7 Nxe4 39. fxe4 $18) 38. g4 {Weighted Error Value: White=0.12 (very precise) /Black=0.06 (flawless)} *

[Event "ESP-ch Teams Primera 2022"]
[Site "Sanxenxo Pontevedra"]
[Date "2022.09.19"]
[Round "3.14"]
[White "Suarez Gomez, Julio"]
[Black "Martin Duque, Jesus"]
[Result "1-0"]
[ECO "B48"]
[WhiteElo "2440"]
[BlackElo "2378"]
[Annotator "TA"]
[PlyCount "51"]
[EventDate "2022.09.17"]
[EventType "team-tourn"]
[EventCountry "ESP"]
[SourceTitle "playchess.com"]
[Source "ChessBase"]
[SourceQuality "1"]
[TimeControl "5400+30"]

{[%evp 16,51,33,38,37,31,31,18,100,105,102,92,100,99,95,67,116,109,103,113,109,124,113,126,125,117,125,116,330,329,315,331,330,318,370,358,602,383]} 1. e4 c5 2. Nf3 e6 3. d4 cxd4 4. Nxd4 Nc6 5. Nc3 Qc7 6. Be3 a6 7. a3 b5 8. Nxc6 Qxc6 9. Be2 {9.Bd3 injects fresh life into this line.} Bb7 {BESTDEEP. B49: Sicilian: Taimanov: 5 Nc3 Qc7 6 Be3 a6 7 Be2.} 10. O-O {CPLX 2.3 6 (Be3-d4) (=3)} Rc8 {BESTDEEP} 11. Qd2 {CPLX 2.4 13 (Be3-d4) (=6)} b4 {RELBLUND 82 (Bf8-c5) (=27)} (11... Bc5 $11 {keeps the balance.}) 12. axb4 $16 {EASY} Bxb4 {[#] RECAPT} 13. Qd4 $146 {CPLX 2.7} ({Predecessor:} 13. Bd4 Nf6 14. Bf3 Bxc3 15. Bxc3 Nxe4 16. Qd4 Nxc3 17. bxc3 d5 18. Qxg7 Qxc3 19. Qg3 {½-½ (45) Karthikeyan,M (2630)-Kacharava,N (2469) Castelldefels 2021}) 13... Bxc3 {EASY} 14. bxc3 {RECAPT} Nf6 {EASY} 15. Bd3 {CPLX 2.9 28 (Rf1-b1) (=7)} Qxc3 {CPLX 2.8 49 (0-0) (=19)} (15... O-O $14) 16. Qxc3 {RECAPT} Rxc3 {RECAPT} 17. Rfb1 {CPLX 2.4} Bc8 {CPLX 2.7} 18. Rb8 {[%mdl 1024] White has strong compensation. CPLX 2.4 0 (Be3-d2) (=5)} O-O {[#] CPLX 2.6} 19. Bd2 $1 {DEEPSTRONG} Rc6 {[#] CPLX 3.1} 20. e5 {CPLX 2.8} Nd5 {CPLX 2.9} 21. c4 $36 {[%cal Bc2c4,Bc4c5][%mdl 2080] White is on the roll. White is much more active. EASY} Nb6 {This move loses the game for Black. CPLX 2.8 214 (Nd5-e7) (=27)} (21... Ne7 $16 {was worth a try.}) 22. Bb4 $18 {EASY} d6 {BESTDEEP} 23. Bxd6 {This bishop pair is nice. CPLX 2.9} ({Don't do} 23. exd6 $6 Nd7 24. Ra8 Bb7 $18) 23... Nd7 {Hoping for ...Rxd6. EASY} 24. Ra8 {CPLX 3.0} ({Less strong is} 24. Bxf8 Nxb8 25. Bd6 Rb6 $16) 24... Re8 {CPLX 2.6 52 (Nd7-b6) (=25)} 25. c5 {BESTDEEP} f5 $2 {MISS-Nd7xc5 244 (Nd7xc5) (=38)} (25... Nxc5 26. Rc1 Bd7) 26. Be2 {Weighted Error Value: White=0.03 (flawless) /Black=0.51} 1-0

[Event "ESP-ch Teams Primera 2022"]
[Site "Sanxenxo Pontevedra"]
[Date "2022.09.19"]
[Round "3.15"]
[White "Suarez Uriel, Adrian"]
[Black "Laiz Ibanez, Hector"]
[Result "1-0"]
[ECO "C50"]
[WhiteElo "2375"]
[BlackElo "2327"]
[Annotator "TA"]
[PlyCount "67"]
[EventDate "2022.09.17"]
[EventType "team-tourn"]
[EventCountry "ESP"]
[SourceTitle "playchess.com"]
[Source "ChessBase"]
[SourceQuality "1"]
[TimeControl "5400+30"]

{[%evp 9,67,21,64,20,20,16,11,20,18,14,25,21,20,5,0,0,0,0,-8,0,0,0,12,3,16,18,64,15,15,7,77,66,63,46,36,0,0,0,0,0,62,37,77,91,74,54,271,267,259,267,242,206,306,310,307,303,293,307,311,290]} 1. e4 e5 2. Nf3 Nc6 3. Bc4 Bc5 4. d3 d6 5. c3 a5 {CPLX 2.3 43 (Ng8-f6) (=43)} 6. O-O {MISS-d3-d4 44 (d3-d4) (=44). C50: Hungarian Defence and Giuoco Pianissimo.} Nf6 {CPLX 2.4} 7. h3 {BESTDEEP} h6 {CPLX 2.6 0 (0-0) (=14)} 8. Re1 {BESTDEEP. The position is equal.} O-O {CPLX 2.9 0 (Bc5-b6) (=11)} 9. Nbd2 {BESTDEEP} a4 {BESTDEEP} 10. Nf1 {CPLX 3.1 4 (Bc4-b5) (=10)} Ne7 {[#] CPLX 3.2 0 (Bc8-d7) (=7)} 11. Bd2 $146 {CPLX 3.1 15 (d3-d4) (=11)} ({Predecessor:} 11. Bb5 Bd7 12. Bxd7 Qxd7 13. Ng3 Qb5 14. d4 Bb6 15. Qc2 exd4 16. cxd4 Nc6 17. Be3 {½-½ (32) Kurmann,O (2459)-Studer,N (2462) Bad Ragaz 2017}) 11... Bb6 {CPLX 3.1 0 (Ne7-g6) (=6)} 12. d4 {CPLX 3.1 0 (Nf1-g3) (=9)} exd4 {BESTDEEP} 13. cxd4 {RECAPT} d5 {CPLX 2.7} 14. exd5 {CPLX 2.8} Nexd5 {CPLX 2.5 0 (Nf6xd5) (=4)} 15. Qc2 {BESTDEEP} a3 {CPLX 3.1 12 (Rf8-e8) (=5)} 16. b4 {CPLX 3.3} Qd6 {CPLX 3.1 13 (Bc8-e6) (=6)} 17. Rab1 {BESTDEEP} Nf4 {CPLX 3.3 46 (Bc8-e6) (=9)} (17... Be6 $11 {might be stronger.}) 18. Ne5 {CPLX 4.2 49 (Nf1-g3) (=9)} (18. Ng3 $14) 18... Ne6 $11 {[%cal Bf4e6,Be6c7,Bc7b5][%mdl 32] BESTDEEP} 19. Bc3 {CPLX 3.4} c6 {RELBLUND 70 (Ne6-f4) (=12)} (19... Nf4 $11) 20. Ng3 $16 {[%cal Bf1g3,Bg3e4,Be4c5][%mdl 32] And now Nf5 would win. White is more active. CPLX 3.0} Nd5 {[%cal Bf6d5,Bd5b4,Bb4c2][%mdl 32] CPLX 3.1 0 (Ne6-f4) (=12)} 21. Rbd1 {CPLX 3.6 17 (Ng3-f5) (=8)} (21. Nf5 $5 {[%cal Rf5d6]} Qc7 22. Rbc1 $14) 21... Nec7 {BESTDEEP} 22. Bb3 {CPLX 3.6 36 (Qc2-d3) (=10)} Nb5 {BESTDEEP} 23. Ba1 {BESTDEEP} Be6 {CPLX 3.7} (23... Qxb4 $2 24. Bxd5 cxd5 25. Rb1 $16) 24. Ne4 {BESTDEEP} Qd8 {RELBLUND 62 (Qd6-e7) (=12)} (24... Nxb4 $2 25. Qb1 Qe7 26. Bxe6 fxe6 27. Ng6 $18) ({Better is} 24... Qe7 $11) 25. Nc5 $14 {EASY} Nxb4 {CPLX 3.7 40 (Qd8-c8) (=14)} 26. Nxe6 {EASY} Nxc2 {EASY} 27. Nxd8 {Chess con chili. EASY} Raxd8 {[#] Black cannot hold the game after this. MISSDEEP-Nc2xa1 217 (Nc2xa1) (=22)} (27... Nxe1 $2 28. Ndxf7 Kh7 29. d5 $18 (29. Rxe1 Bxd4 30. Bc4 Bb2 $16)) ({Black should try} 27... Nxa1 $14 28. Bxf7+ Rxf7 29. Nexf7 (29. Ndxf7 Nc2 $11) 29... Bxd8 30. Nxd8 Nc2 31. Re8+ (31. Nxb7 Nxe1 32. Rxe1 Nc3 $15) 31... Kh7) 28. Bxc2 $18 {EASY} Nxd4 {CPLX 2.8} 29. Bxd4 {RECAPT} Bxd4 {RECAPT} 30. Nf3 {CPLX 2.6 36 (Bc2-b3) (=8)} Bc3 {CPLX 2.4 100 (Bd4-c5) (=23)} (30... Bc5 $142 31. Rb1 Rd7) 31. Rxd8 {BESTDEEP. White has a decisive advantage.} Rxd8 {RECAPT} 32. Re7 {CPLX 2.2} b5 {CPLX 2.1} 33. Rc7 {CPLX 2.1} b4 {CPLX 2.2 4 (Kg8-f8) (=21)} 34. Rxc6 {Weighted Error Value: White=0.10 (very precise) /Black=0.23 (precise)} 1-0

[Event "ESP-ch Teams Primera 2022"]
[Site "Sanxenxo Pontevedra"]
[Date "2022.09.19"]
[Round "3.16"]
[White "Abal Cores, Lucas"]
[Black "Quispe Arteaga, Gabriel"]
[Result "1/2-1/2"]
[ECO "B56"]
[WhiteElo "2291"]
[BlackElo "2373"]
[Annotator "TA"]
[PlyCount "64"]
[EventDate "2022.09.17"]
[EventType "team-tourn"]
[EventCountry "ESP"]
[SourceTitle "playchess.com"]
[Source "ChessBase"]
[SourceQuality "1"]
[TimeControl "5400+30"]

{[%evp 12,64,28,0,27,6,2,0,0,-44,-42,-47,-30,-89,-72,-75,-81,-88,-91,-118,-116,-125,-128,-204,-138,-112,-89,-111,-76,-233,-220,-201,-208,-210,-145,-137,-123,-78,-34,-52,30,63,53,34,171,111,169,89,100,106,256,-66,305,40,255]} 1. e4 c5 2. Nf3 d6 3. d4 cxd4 4. Nxd4 Nf6 5. Nc3 e5 6. Nb3 a6 7. h3 {CPLX 2.1 28 (Bf1-e2) (=28)} Be6 {CPLX 2.1 27 (Bf8-e7) (=27). B90: Sicilian Najdorf: Unusual White 6th moves, 6 Be3 Ng4 and 6 Be3 e5.} 8. Be3 {CPLX 2.2} Be7 {CPLX 2.4 0 (Nb8-c6) (=14)} 9. g4 {CPLX 2.4 2 (f2-f4) (=10)} d5 {CPLX 2.5. The position is equal.} 10. g5 {CPLX 2.7 44 (e4xd5) (=19)} d4 {DEEPSTRONG} 11. gxf6 {EASY} Bxf6 {[#] RECAPT} 12. Bd2 $146 {CPLX 3.2 59 (Nb3-c5) (=22)} (12. Nc5 $11 {keeps the balance.}) ({Predecessor:} 12. Nc5 dxe3 13. Qxd8+ Bxd8 14. fxe3 Bh4+ 15. Kd2 b6 16. Nxe6 fxe6 17. Bc4 Ke7 18. a4 {½-½ (26) Carstensen,J (2358)-Lindgren,P (2374) Vaxjo 2015}) 12... dxc3 $17 {EASY} 13. Bxc3 {RECAPT} Qe7 {CPLX 2.6 0 (Qd8-b6) (=4)} 14. Qf3 {CPLX 2.3} Nc6 {CPLX 2.3 0 (0-0) (=3)} 15. Qe3 {CPLX 2.3 27 (Bc3-d2) (=18)} O-O {CPLX 2.3 2 (Bf6-g5) (=3)} 16. Qc5 {CPLX 2.3 9 (Rh1-g1) (=17)} Qc7 {BESTDEEP} 17. O-O-O {CPLX 2.8 76 (Qc5-e3) (=22)} (17. Qe3 $17) 17... b6 {CPLX 2.9 66 (Bf6-e7) (=9)} 18. Qe3 {BESTDEEP} a5 {[%cal Ba6a5,Ba5a4,Ba4a3][%mdl 32] Threatens to win with ...a4. CPLX 2.5 23 (b6-b5) (=10)} 19. Kb1 {CPLX 2.6 22 (a2-a4) (=21)} Rfc8 {[#] Strongly threatening ...a4. CPLX 2.7 35 (a5-a4) (=12)} 20. Bd3 $2 {CPLX 2.6 157 (a2-a3) (=30)} (20. a3 $17) 20... a4 $19 {BESTDEEP} 21. Nc1 {CPLX 2.7} b5 {CPLX 2.5 0 (Qc7-b7) (=10)} 22. a3 {BESTDEEP} b4 {CPLX 2.5 65 (Ra8-b8) (=14)} (22... Nd4 23. Na2 $11) 23. axb4 {CPLX 3.1} a3 {BESTDEEP} 24. b3 {BESTDEEP} Nd4 {CPLX 3.3 44 (a3-a2) (=15)} 25. Na2 {CPLX 5.0} Qe7 {RELBLUND 82 (Bf6-e7) (=18)} (25... Be7 $15) 26. Bxd4 $11 {CPLX 4.6=>BLUNDERREACT} exd4 {RECAPT} 27. Qd2 {BESTDEEP} Rc3 {[#] RELBLUND 137 (g7-g6) (=23)} 28. f4 $1 $18 {aiming for e5. BESTDEEP} (28. Nxc3 dxc3 29. Qe3 a2+ 30. Ka1 Qxb4 $17) 28... Rac8 {CPLX 4.6 58 (Rc3-c8) (=25)} (28... Rcc8 $16 {is a better defense.}) 29. Rc1 {CPLX 4.9 80 (e4-e5) (=22)} (29. Nxc3 $6 dxc3 30. Qe3 Qxb4 $14) (29. e5 $18 Bh4 30. Nxc3 dxc3 31. Qc1) 29... Bh4 {CPLX 4.9 11 (g7-g6) (=24)} 30. Rhg1 {Ba6 is the strong threat. BESTDEEP} ({Inferior is} 30. Nxc3 dxc3 31. Qe3 a2+ 32. Ka1 Qxb4 $17) 30... f5 {CPLX 5.3 150 (Rc3-c7) (=29)} (30... R3c7 $16 {might work better.}) 31. b5 $2 {Chess con chili. RELBLUND 322 (e4xf5) (=33)} ({Better is} 31. exf5 $18 Rxd3 32. cxd3 (32. Qxd3 Bd7 $18) 32... Bxf5 33. Rxc8+ Bxc8 34. b5) 31... Qf7 {[%mdl 8192] RELBLUND 371 (f5xe4) (=43)} (31... fxe4 $15 32. Bxe4 Re3) 32. Ka1 $2 {MISS-Na2xc3 265 (Na2xc3) (=42)} ({White should play} 32. Nxc3 $18 dxc3 33. Qe3) 32... Be7 $2 {[%mdl 32768] Weighted Error Value: White=0.48/Black=0.58. An unexpected result.} (32... fxe4 $14 33. Bxe4 Re3) 1/2-1/2